[Event "NK 2022"]
[Site "Groningen, Netherlands"]
[Date "2022.12.23"]
[Round "6.1"]
[White "Warmerdam, Max"]
[Black "Reinderman, Dimitri"]
[Result "1/2-1/2"]
[TimeControl "40/90; 30 minutes + increment 30 seconds from start"]
[WhiteTitle "GM"]
[BlackTitle "GM"]
[WhiteFideId "1048104"]
[BlackFideId "1001302"]
[WhiteElo "2619"]
[BlackElo "2575"]

1. d4 {[%clk 01:30:56]} {[%emt 00:00:04]} d5 {[%clk 01:30:52]} {[%emt
00:00:08]} 2. c4 {[%clk 01:30:01]} {[%emt 00:01:25]} e6 {[%clk 01:31:19]}
{[%emt 00:00:04]} 3. Nc3 {[%clk 01:29:02]} {[%emt 00:01:28]} c5 {[%clk
01:31:39]} {[%emt 00:00:10]} 4. cxd5 {[%clk 01:29:23]} {[%emt 00:00:08]} exd5
{[%clk 01:32:06]} {[%emt 00:00:04]} 5. Nf3 {[%clk 01:29:18]} {[%emt 00:00:35]}
Nc6 {[%clk 01:32:30]} {[%emt 00:00:06]} 6. dxc5 {[%clk 01:26:37]} {[%emt
00:03:10]} d4 {[%clk 01:32:21]} {[%emt 00:00:40]} 7. Na4 {[%clk 01:26:53]}
{[%emt 00:00:14]} Bxc5 {[%clk 01:32:28]} {[%emt 00:00:24]} 8. Nxc5 {[%clk
01:27:18]} {[%emt 00:00:05]} Qa5+ {[%clk 01:32:52]} {[%emt 00:00:06]} 9. Qd2
{[%clk 01:27:41]} {[%emt 00:00:06]} Qxc5 {[%clk 01:33:12]} {[%emt 00:00:11]} 10.
e3 {[%clk 01:28:06]} {[%emt 00:00:05]} dxe3 {[%clk 01:32:50]} {[%emt 00:00:53]}
11. Qxe3+ {[%clk 01:27:31]} {[%emt 00:01:04]} Qxe3+ {[%clk 01:33:04]} {[%emt
00:00:17]} 12. Bxe3 {[%clk 01:27:56]} {[%emt 00:00:05]} Nge7 {[%clk 01:31:30]}
{[%emt 00:02:04]} 13. Bc4 {[%clk 01:26:46]} {[%emt 00:01:39]} h6 {[%clk
01:31:22]} {[%emt 00:00:39]} 14. O-O {[%clk 01:26:16]} {[%emt 00:00:59]} Be6
{[%clk 01:30:55]} {[%emt 00:00:58]} 15. Bxe6 {[%clk 01:26:36]} {[%emt
00:00:10]} fxe6 {[%clk 01:31:15]} {[%emt 00:00:10]} 16. Rfe1 {[%clk 01:25:53]}
{[%emt 00:01:08]} Kf7 {[%clk 01:28:28]} {[%emt 00:03:20]} 17. Bd2 {[%clk
01:19:46]} {[%emt 00:06:37]} Rhd8 {[%clk 01:23:41]} {[%emt 00:05:18]} 18. Re4
{[%clk 01:18:52]} {[%emt 00:01:24]} Nd5 {[%clk 01:21:34]} {[%emt 00:02:37]} 19.
Rae1 {[%clk 01:15:03]} {[%emt 00:04:18]} Rd6 {[%clk 01:21:30]} {[%emt
00:00:35]} 20. a3 {[%clk 01:14:05]} {[%emt 00:01:28]} Rad8 {[%clk 01:20:11]}
{[%emt 00:01:48]} 21. R4e2 {[%clk 01:07:58]} {[%emt 00:06:37]} Re8 {[%clk
01:19:26]} {[%emt 00:01:16]} 22. g3 {[%clk 01:05:37]} {[%emt 00:02:51]} Nf6
{[%clk 01:09:14]} {[%emt 00:10:42]} 23. Kg2 {[%clk 01:04:23]} {[%emt 00:01:43]}
Rd3 {[%clk 01:08:21]} {[%emt 00:01:24]} 24. Bc3 {[%clk 00:54:01]} {[%emt
00:10:51]} Nd5 {[%clk 01:07:07]} {[%emt 00:01:44]} 25. Be5 {[%clk 00:53:22]}
{[%emt 00:01:08]} Rf8 {[%clk 00:58:54]} {[%emt 00:08:43]} 26. Bd6 {[%clk
00:37:48]} {[%emt 00:16:04]} Re8 {[%clk 00:52:08]} {[%emt 00:07:17]} 27. Bc5
{[%clk 00:24:02]} {[%emt 00:14:16]} Nf6 {[%clk 00:47:26]} {[%emt 00:05:13]} 28.
h3 {[%clk 00:23:01]} {[%emt 00:01:30]} a6 {[%clk 00:46:27]} {[%emt 00:01:30]}
29. Nd2 {[%clk 00:20:11]} {[%emt 00:03:19]} Rd5 {[%clk 00:42:18]} {[%emt
00:04:40]} 30. Be3 {[%clk 00:18:22]} {[%emt 00:02:19]} Ne5 {[%clk 00:40:54]}
{[%emt 00:01:54]} 31. Rc1 {[%clk 00:18:21]} {[%emt 00:00:31]} Nd3 {[%clk
00:39:54]} {[%emt 00:01:30]} 32. Rc2 {[%clk 00:18:46]} {[%emt 00:00:05]} b5
{[%clk 00:34:10]} {[%emt 00:06:14]} 33. Nb3 {[%clk 00:17:11]} {[%emt 00:02:05]}
e5 {[%clk 00:32:26]} {[%emt 00:02:14]} 34. Kf1 {[%clk 00:16:47]} {[%emt
00:00:54]} e4 {[%clk 00:29:25]} {[%emt 00:03:32]} 35. Bd4 {[%clk 00:14:02]}
{[%emt 00:03:15]} Ne5 {[%clk 00:23:12]} {[%emt 00:06:43]} 36. Rc7+ {[%clk
00:10:55]} {[%emt 00:03:36]} Re7 {[%clk 00:10:58]} {[%emt 00:12:44]} 37. Bxe5
{[%clk 00:05:00]} {[%emt 00:06:25]} Rdxe5 {[%clk 00:11:21]} {[%emt 00:00:07]}
38. Rc6 {[%clk 00:05:27]} {[%emt 00:00:03]} R7e6 {[%clk 00:09:33]} {[%emt
00:02:18]} 39. Rec2 {[%clk 00:05:36]} {[%emt 00:00:21]} e3 {[%clk 00:06:55]}
{[%emt 00:03:08]} 40. Rxe6 {[%clk 00:03:18]} {[%emt 00:02:48]} Rxe6 {[%clk
00:02:16]} {[%emt 00:05:09]} 41. Rc7+ {[%clk 00:30:25]} {[%emt 00:03:23]} Kg6
{[%clk 00:30:56]} {[%emt 00:01:50]} 42. Nd4 {[%clk 00:29:51]} {[%emt 00:01:03]}
Re4 {[%clk 00:23:06]} {[%emt 00:08:20]} 43. fxe3 {[%clk 00:28:24]} {[%emt
00:01:57]} Nd5 {[%clk 00:23:11]} {[%emt 00:00:25]} 44. Rc6+ {[%clk 00:28:16]}
{[%emt 00:00:38]} Kf7 {[%clk 00:17:18]} {[%emt 00:06:24]} 45. Kf2 {[%clk
00:22:23]} {[%emt 00:06:22]} Nxe3 {[%clk 00:17:34]} {[%emt 00:00:14]} 46. Kf3
{[%clk 00:22:25]} {[%emt 00:00:27]} Rxd4 {[%clk 00:15:55]} {[%emt 00:02:10]} 47.
Kxe3 {[%clk 00:22:38]} {[%emt 00:00:17]} Ra4 {[%clk 00:16:21]} {[%emt
00:00:04]} 48. Rd6 {[%clk 00:18:54]} {[%emt 00:04:14]} h5 {[%clk 00:15:28]}
{[%emt 00:01:23]} 49. Rb6 {[%clk 00:12:25]} {[%emt 00:06:59]} Ke7 {[%clk
00:15:08]} {[%emt 00:00:50]} 50. Kf3 {[%clk 00:09:21]} {[%emt 00:03:33]} Kf7
{[%clk 00:15:14]} {[%emt 00:00:24]} 51. Rc6 {[%clk 00:08:44]} {[%emt 00:01:07]}
Ke7 {[%clk 00:14:36]} {[%emt 00:01:08]} 52. g4 {[%clk 00:08:37]} {[%emt
00:00:37]} hxg4+ {[%clk 00:13:39]} {[%emt 00:01:28]} 53. hxg4 {[%clk 00:09:05]}
{[%emt 00:00:01]} g5 {[%clk 00:13:47]} {[%emt 00:00:22]} 54. Kg3 {[%clk
00:09:04]} {[%emt 00:00:31]} Kf7 {[%clk 00:13:52]} {[%emt 00:00:25]} 55. Rd6
{[%clk 00:09:16]} {[%emt 00:00:17]} Kg7 {[%clk 00:13:15]} {[%emt 00:01:07]} 56.
Rb6 {[%clk 00:09:27]} {[%emt 00:00:19]} Kf7 {[%clk 00:13:36]} {[%emt 00:00:09]}
57. Kf3 {[%clk 00:09:02]} {[%emt 00:00:55]} Kg7 {[%clk 00:12:06]} {[%emt
00:02:00]} 58. Re6 {[%clk 00:09:11]} {[%emt 00:00:20]} Rf4+ {[%clk 00:12:03]}
{[%emt 00:00:34]} 59. Kg3 {[%clk 00:08:32]} {[%emt 00:01:09]} Rd4 {[%clk
00:10:56]} {[%emt 00:01:36]} 60. Rxa6 {[%clk 00:08:28]} {[%emt 00:00:35]} Rd3+
{[%clk 00:11:20]} {[%emt 00:00:06]} 61. Kf2 {[%clk 00:08:53]} {[%emt 00:00:04]}
Rb3 {[%clk 00:11:32]} {[%emt 00:00:18]} 1/2-1/2

[Event "NK 2022"]
[Site "Groningen, Netherlands"]
[Date "2022.12.23"]
[Round "6.2"]
[White "Tiviakov, Sergei"]
[Black "L'Ami, Erwin"]
[Result "0-1"]
[TimeControl "40/90; 30 minutes + increment 30 seconds from start"]
[WhiteTitle "GM"]
[BlackTitle "GM"]
[WhiteFideId "1008013"]
[WhiteElo "2562"]
[BlackElo "2627"]

1. e4 {[%clk 01:30:57]} {[%emt 00:00:02]} e5 {[%clk 01:30:51]} {[%emt
00:00:09]} 2. Nf3 {[%clk 01:31:22]} {[%emt 00:00:05]} Nc6 {[%clk 01:31:13]}
{[%emt 00:00:08]} 3. Bb5 {[%clk 01:31:47]} {[%emt 00:00:05]} a6 {[%clk
01:31:27]} {[%emt 00:00:15]} 4. Ba4 {[%clk 01:32:12]} {[%emt 00:00:05]} Nf6
{[%clk 01:31:47]} {[%emt 00:00:10]} 5. d3 {[%clk 01:32:37]} {[%emt 00:00:06]}
b5 {[%clk 01:31:04]} {[%emt 00:01:13]} 6. Bb3 {[%clk 01:33:01]} {[%emt
00:00:06]} Bc5 {[%clk 01:31:26]} {[%emt 00:00:07]} 7. c3 {[%clk 01:32:49]}
{[%emt 00:00:43]} d6 {[%clk 01:31:05]} {[%emt 00:00:50]} 8. O-O {[%clk
01:32:25]} {[%emt 00:00:54]} h6 {[%clk 01:30:15]} {[%emt 00:01:20]} 9. Be3
{[%clk 01:25:36]} {[%emt 00:07:19]} Bxe3 {[%clk 01:28:13]} {[%emt 00:02:33]} 10.
fxe3 {[%clk 01:25:02]} {[%emt 00:01:05]} O-O {[%clk 01:28:07]} {[%emt
00:00:35]} 11. Nbd2 {[%clk 01:23:50]} {[%emt 00:01:42]} Na5 {[%clk 01:24:48]}
{[%emt 00:03:48]} 12. Bc2 {[%clk 01:23:35]} {[%emt 00:00:46]} c5 {[%clk
01:25:05]} {[%emt 00:00:13]} 13. d4 {[%clk 01:00:51]} {[%emt 00:23:15]} Nc6
{[%clk 01:22:06]} {[%emt 00:03:28]} 14. d5 {[%clk 01:00:21]} {[%emt 00:01:00]}
Ne7 {[%clk 01:19:38]} {[%emt 00:02:57]} 15. Qe2 {[%clk 01:00:01]} {[%emt
00:00:51]} Ng6 {[%clk 01:11:04]} {[%emt 00:09:03]} 16. b3 {[%clk 00:58:25]}
{[%emt 00:02:06]} Bd7 {[%clk 01:07:38]} {[%emt 00:03:56]} 17. Bd3 {[%clk
00:56:36]} {[%emt 00:02:19]} Qb6 {[%clk 01:03:51]} {[%emt 00:04:17]} 18. Kh1
{[%clk 00:55:52]} {[%emt 00:01:14]} a5 {[%clk 00:58:05]} {[%emt 00:06:16]} 19.
a4 {[%clk 00:50:26]} {[%emt 00:05:56]} c4 {[%clk 00:55:51]} {[%emt 00:02:44]}
20. bxc4 {[%clk 00:49:54]} {[%emt 00:01:03]} bxa4 {[%clk 00:55:52]} {[%emt
00:00:29]} 21. Bc2 {[%clk 00:38:47]} {[%emt 00:11:37]} Rfb8 {[%clk 00:53:49]}
{[%emt 00:02:33]} 22. Ra2 {[%clk 00:32:48]} {[%emt 00:06:29]} Be8 {[%clk
00:47:24]} {[%emt 00:06:54]} 23. Rfa1 {[%clk 00:31:17]} {[%emt 00:02:02]} Nd7
{[%clk 00:45:50]} {[%emt 00:02:04]} 24. Bxa4 {[%clk 00:18:45]} {[%emt
00:13:03]} Nc5 {[%clk 00:46:08]} {[%emt 00:00:11]} 25. Bd1 {[%clk 00:18:15]}
{[%emt 00:01:00]} Nf8 {[%clk 00:38:36]} {[%emt 00:08:02]} 26. Ne1 {[%clk
00:18:14]} {[%emt 00:00:31]} Nfd7 {[%clk 00:37:32]} {[%emt 00:01:33]} 27. h3
{[%clk 00:16:55]} {[%emt 00:01:49]} Nf6 {[%clk 00:34:12]} {[%emt 00:03:50]} 28.
Bc2 {[%clk 00:16:49]} {[%emt 00:00:37]} Qd8 {[%clk 00:31:44]} {[%emt 00:02:58]}
29. Kh2 {[%clk 00:16:28]} {[%emt 00:00:50]} g6 {[%clk 00:30:33]} {[%emt
00:01:41]} 30. Qf3 {[%clk 00:14:04]} {[%emt 00:02:54]} Kg7 {[%clk 00:30:05]}
{[%emt 00:00:57]} 31. Qf2 {[%clk 00:12:10]} {[%emt 00:02:25]} Ra7 {[%clk
00:27:50]} {[%emt 00:02:44]} 32. Qh4 {[%clk 00:09:59]} {[%emt 00:02:41]} h5
{[%clk 00:24:00]} {[%emt 00:04:20]} 33. Nef3 {[%clk 00:10:12]} {[%emt
00:00:17]} a4 {[%clk 00:23:00]} {[%emt 00:01:30]} 34. Qe1 {[%clk 00:09:21]}
{[%emt 00:01:21]} Rab7 {[%clk 00:21:38]} {[%emt 00:01:53]} 35. Qc1 {[%clk
00:09:07]} {[%emt 00:00:45]} Nb3 {[%clk 00:11:37]} {[%emt 00:10:30]} 36. Bxb3
{[%clk 00:09:30]} {[%emt 00:00:07]} axb3 {[%clk 00:12:01]} {[%emt 00:00:05]} 37.
Rb2 {[%clk 00:09:56]} {[%emt 00:00:04]} Nd7 {[%clk 00:12:22]} {[%emt 00:00:09]}
38. Ra3 {[%clk 00:06:01]} {[%emt 00:04:26]} Nc5 {[%clk 00:12:38]} {[%emt
00:00:13]} 39. Qa1 {[%clk 00:05:16]} {[%emt 00:01:15]} Bd7 {[%clk 00:12:35]}
{[%emt 00:00:33]} 40. Kg1 {[%clk 00:04:32]} {[%emt 00:01:14]} g5 {[%clk
00:10:29]} {[%emt 00:02:35]} 41. Qb1 {[%clk 00:01:22]} {[%emt 00:03:41]} g4
{[%clk 00:06:26]} {[%emt 00:04:33]} 42. hxg4 {[%clk 00:01:48]} {[%emt
00:00:04]} hxg4 {[%clk 00:06:50]} {[%emt 00:00:06]} 43. Ne1 {[%clk 00:02:12]}
{[%emt 00:00:06]} Qg5 {[%clk 00:01:40]} {[%emt 00:05:39]} 44. Nf1 {[%clk
00:02:31]} {[%emt 00:00:11]} Rh8 {[%clk 00:27:50]} {[%emt 00:04:20]} 45. Kf2
{[%clk 00:30:36]} {[%emt 00:02:26]} Nxe4+ {[%clk 00:25:44]} {[%emt 00:02:37]}
46. Qxe4 {[%clk 00:31:01]} {[%emt 00:00:04]} Bf5 {[%clk 00:26:06]} {[%emt
00:00:07]} 47. Nf3 {[%clk 00:31:28]} {[%emt 00:00:03]} Qf6 {[%clk 00:25:35]}
{[%emt 00:01:01]} 0-1

[Event "NK 2022"]
[Site "Groningen, Netherlands"]
[Date "2022.12.23"]
[Round "6.3"]
[White "Van Den Doel, Erik"]
[Black "Pruijssers, Roeland"]
[Result "1/2-1/2"]
[TimeControl "40/90; 30 minutes + increment 30 seconds from start"]
[WhiteTitle "GM"]
[BlackTitle "GM"]
[BlackFideId "1013068"]
[WhiteElo "2582"]
[BlackElo "2538"]

1. d4 {[%clk 01:27:42]} {[%emt 00:03:18]} d5 {[%clk 01:30:09]} {[%emt
00:00:51]} 2. Nf3 {[%clk 01:26:49]} {[%emt 00:01:23]} Nf6 {[%clk 01:30:20]}
{[%emt 00:00:19]} 3. c4 {[%clk 01:27:12]} {[%emt 00:00:07]} e6 {[%clk
01:30:27]} {[%emt 00:00:22]} 4. cxd5 {[%clk 01:27:34]} {[%emt 00:00:09]} exd5
{[%clk 01:30:39]} {[%emt 00:00:18]} 5. Nc3 {[%clk 01:28:00]} {[%emt 00:00:04]}
c6 {[%clk 01:29:30]} {[%emt 00:01:39]} 6. Bf4 {[%clk 01:28:01]} {[%emt
00:00:30]} Bd6 {[%clk 01:27:16]} {[%emt 00:02:44]} 7. Bxd6 {[%clk 01:26:55]}
{[%emt 00:01:37]} Qxd6 {[%clk 01:27:38]} {[%emt 00:00:07]} 8. e3 {[%clk
01:27:19]} {[%emt 00:00:06]} O-O {[%clk 01:12:46]} {[%emt 00:15:21]} 9. Bd3
{[%clk 01:26:57]} {[%emt 00:00:53]} Bg4 {[%clk 01:12:02]} {[%emt 00:01:13]} 10.
h3 {[%clk 01:26:41]} {[%emt 00:00:46]} Bxf3 {[%clk 01:09:01]} {[%emt 00:03:31]}
11. Qxf3 {[%clk 01:27:07]} {[%emt 00:00:04]} Nbd7 {[%clk 01:09:25]} {[%emt
00:00:07]} 12. O-O {[%clk 01:09:52]} {[%emt 00:17:44]} Rfe8 {[%clk 01:06:23]}
{[%emt 00:03:32]} 13. Rab1 {[%clk 01:08:52]} {[%emt 00:01:30]} a5 {[%clk
01:03:33]} {[%emt 00:03:20]} 14. Rfc1 {[%clk 01:08:33]} {[%emt 00:00:50]} g6
{[%clk 00:53:47]} {[%emt 00:10:16]} 15. Qd1 {[%clk 00:58:18]} {[%emt 00:10:45]}
Kg7 {[%clk 00:49:23]} {[%emt 00:04:54]} 16. a3 {[%clk 00:57:50]} {[%emt
00:00:59]} Ra7 {[%clk 00:39:27]} {[%emt 00:10:26]} 17. Qc2 {[%clk 00:52:47]}
{[%emt 00:05:32]} Rb8 {[%clk 00:36:06]} {[%emt 00:03:50]} 18. Bf1 {[%clk
00:49:58]} {[%emt 00:03:19]} h5 {[%clk 00:35:33]} {[%emt 00:01:02]} 19. b4
{[%clk 00:45:17]} {[%emt 00:05:13]} axb4 {[%clk 00:27:06]} {[%emt 00:08:57]} 20.
axb4 {[%clk 00:45:43]} {[%emt 00:00:04]} b5 {[%clk 00:27:16]} {[%emt 00:00:19]}
21. Ne2 {[%clk 00:43:58]} {[%emt 00:02:15]} Rb6 {[%clk 00:27:38]} {[%emt
00:00:07]} 22. Nf4 {[%clk 00:37:16]} {[%emt 00:07:12]} Ra4 {[%clk 00:26:00]}
{[%emt 00:02:04]} 23. Nd3 {[%clk 00:33:08]} {[%emt 00:04:43]} Rba6 {[%clk
00:26:15]} {[%emt 00:00:14]} 24. Qd1 {[%clk 00:29:23]} {[%emt 00:04:16]} Ra3
{[%clk 00:20:41]} {[%emt 00:06:03]} 25. Ra1 {[%clk 00:27:46]} {[%emt 00:02:07]}
Ne4 {[%clk 00:18:51]} {[%emt 00:02:20]} 26. Rxa3 {[%clk 00:19:48]} {[%emt
00:08:29]} Rxa3 {[%clk 00:19:18]} {[%emt 00:00:02]} 27. Qc2 {[%clk 00:18:51]}
{[%emt 00:01:27]} Ra6 {[%clk 00:17:27]} {[%emt 00:02:20]} 28. Qb2 {[%clk
00:15:46]} {[%emt 00:03:36]} Qb8 {[%clk 00:11:34]} {[%emt 00:06:22]} 29. Ra1
{[%clk 00:02:58]} {[%emt 00:13:19]} Ra7 {[%clk 00:08:47]} {[%emt 00:03:17]} 30.
Qc1 {[%clk 00:03:02]} {[%emt 00:00:25]} Ra8 {[%clk 00:07:39]} {[%emt 00:01:39]}
31. Be2 {[%clk 00:01:23]} {[%emt 00:02:09]} Kg8 {[%clk 00:07:24]} {[%emt
00:00:44]} 32. Ra5 {[%clk 00:01:18]} {[%emt 00:00:36]} Qb7 {[%clk 00:05:10]}
{[%emt 00:02:43]} 33. Qa3 {[%clk 00:01:19]} {[%emt 00:00:29]} Nb6 {[%clk
00:04:07]} {[%emt 00:01:33]} 34. Rxa8+ {[%clk 00:00:40]} {[%emt 00:01:09]} Nxa8
{[%clk 00:04:27]} {[%emt 00:00:10]} 35. Bf3 {[%clk 00:00:41]} {[%emt 00:00:30]}
Ng5 {[%clk 00:04:06]} {[%emt 00:00:50]} 36. Bd1 {[%clk 00:00:56]} {[%emt
00:00:15]} Nb6 {[%clk 00:02:14]} {[%emt 00:02:22]} 37. Nc5 {[%clk 00:01:16]}
{[%emt 00:00:10]} Qa8 {[%clk 00:02:00]} {[%emt 00:00:43]} 38. Qa5 {[%clk
00:00:42]} {[%emt 00:01:05]} Qb8 {[%clk 00:01:23]} {[%emt 00:01:07]} 39. Qa6
{[%clk 00:00:38]} {[%emt 00:00:34]} Qc7 {[%clk 00:01:05]} {[%emt 00:00:48]} 40.
Bc2 {[%clk 00:00:33]} {[%emt 00:00:35]} Nc4 {[%clk 00:00:35]} {[%emt 00:01:00]}
41. Qa8+ {[%clk 00:07:51]} {[%emt 00:23:13]} Kg7 {[%clk 00:31:03]} {[%emt
00:00:02]} 42. Qe8 {[%clk 00:08:14]} {[%emt 00:00:06]} Qd6 {[%clk 00:30:33]}
{[%emt 00:01:00]} 43. h4 {[%clk 00:04:37]} {[%emt 00:04:07]} Nh7 {[%clk
00:30:44]} {[%emt 00:00:19]} 44. Qd7 {[%clk 00:02:55]} {[%emt 00:02:11]} Nf8
{[%clk 00:27:52]} {[%emt 00:03:22]} 45. Qxd6 {[%clk 00:03:06]} {[%emt
00:00:19]} Nxd6 {[%clk 00:28:20]} {[%emt 00:00:02]} 46. Kf1 {[%clk 00:03:27]}
{[%emt 00:00:10]} f5 {[%clk 00:17:30]} {[%emt 00:11:20]} 47. f3 {[%clk
00:03:12]} {[%emt 00:00:45]} Kf6 {[%clk 00:17:48]} {[%emt 00:00:12]} 48. Kf2
{[%clk 00:03:33]} {[%emt 00:00:09]} Ne8 {[%clk 00:15:29]} {[%emt 00:02:49]} 49.
g4 {[%clk 00:01:32]} {[%emt 00:02:31]} fxg4 {[%clk 00:12:29]} {[%emt 00:03:30]}
50. fxg4 {[%clk 00:02:01]} {[%emt 00:00:02]} hxg4 {[%clk 00:12:51]} {[%emt
00:00:08]} 51. Kg3 {[%clk 00:01:40]} {[%emt 00:00:51]} Ng7 {[%clk 00:12:13]}
{[%emt 00:01:08]} 52. Kxg4 {[%clk 00:01:58]} {[%emt 00:00:12]} Nge6 {[%clk
00:12:30]} {[%emt 00:00:12]} 53. Nb3 {[%clk 00:01:20]} {[%emt 00:01:08]} Nd7
{[%clk 00:10:27]} {[%emt 00:02:33]} 54. e4 {[%clk 00:01:16]} {[%emt 00:00:35]}
Nb8 {[%clk 00:03:48]} {[%emt 00:07:09]} 55. exd5 {[%clk 00:00:58]} {[%emt
00:00:48]} cxd5 {[%clk 00:04:16]} {[%emt 00:00:02]} 56. Bd3 {[%clk 00:01:25]}
{[%emt 00:00:03]} Nc6 {[%clk 00:04:24]} {[%emt 00:00:22]} 57. Bxb5 {[%clk
00:01:51]} {[%emt 00:00:04]} Nxb4 {[%clk 00:04:42]} {[%emt 00:00:12]} 58. Bd7
{[%clk 00:02:11]} {[%emt 00:00:10]} Nc2 {[%clk 00:04:36]} {[%emt 00:00:36]} 59.
Bxe6 {[%clk 00:02:22]} {[%emt 00:00:19]} Kxe6 {[%clk 00:05:04]} {[%emt
00:00:02]} 60. Kg5 {[%clk 00:02:22]} {[%emt 00:00:30]} 1/2-1/2

[Event "NK 2022"]
[Site "Groningen, Netherlands"]
[Date "2022.12.23"]
[Round "6.4"]
[White "Kevlishvili, Robby"]
[Black "Van Foreest, Lucas"]
[Result "0-1"]
[TimeControl "40/90; 30 minutes + increment 30 seconds from start"]
[WhiteTitle "GM"]
[BlackTitle "GM"]
[WhiteFideId "1040634"]
[BlackFideId "1039792"]
[WhiteElo "2530"]
[BlackElo "2577"]

1. e4 {[%clk 01:30:56]} {[%emt 00:11:33]} c5 {[%clk 01:30:45]} 2. Nf3 {[%clk
01:31:21]} d6 {[%clk 01:31:07]} 3. d4 {[%clk 01:31:46]} cxd4 {[%clk 01:31:32]}
4. Nxd4 {[%clk 01:32:12]} Nf6 {[%clk 01:31:58]} 5. Nc3 {[%clk 01:32:38]} a6
{[%clk 01:32:20]} 6. h4 {[%clk 01:33:02]} e5 {[%clk 01:32:29]} 7. Nb3 {[%clk
01:33:27]} Be6 {[%clk 01:32:41]} 8. f4 {[%clk 01:33:36]} g6 {[%clk 01:32:54]} 9.
fxe5 {[%clk 01:31:18]} dxe5 {[%clk 01:33:14]} 10. Qxd8+ {[%clk 01:31:26]} Kxd8
{[%clk 01:33:11]} 11. Bg5 {[%clk 01:31:37]} Nbd7 {[%clk 01:33:25]} 12. O-O-O
{[%clk 01:29:17]} Ke8 {[%clk 01:33:35]} 13. Be2 {[%clk 01:14:21]} {[%emt
00:03:52]} Rc8 {[%clk 01:27:23]} {[%emt 00:06:42]} 14. Bf3 {[%clk 01:13:32]}
{[%emt 00:01:19]} h6 {[%clk 01:24:55]} {[%emt 00:02:58]} 15. Be3 {[%clk
01:12:51]} {[%emt 00:01:11]} h5 {[%clk 01:21:06]} {[%emt 00:04:19]} 16. Kb1
{[%clk 00:53:30]} {[%emt 00:19:51]} Bb4 {[%clk 01:15:39]} {[%emt 00:05:56]} 17.
Nd5 {[%clk 00:52:37]} {[%emt 00:01:24]} Nxd5 {[%clk 01:15:21]} {[%emt
00:00:49]} 18. exd5 {[%clk 00:53:01]} {[%emt 00:00:06]} Bf5 {[%clk 01:15:44]}
{[%emt 00:00:05]} 19. Rc1 {[%clk 00:53:24]} {[%emt 00:00:08]} Rc7 {[%clk
01:03:24]} {[%emt 00:12:51]} 20. a3 {[%clk 00:50:37]} {[%emt 00:03:18]} Bd6
{[%clk 01:03:47]} {[%emt 00:00:07]} 21. Rhe1 {[%clk 00:50:28]} {[%emt
00:00:38]} Ke7 {[%clk 00:54:23]} {[%emt 00:09:53]} 22. Nd2 {[%clk 00:32:27]}
{[%emt 00:18:31]} Nc5 {[%clk 00:47:05]} {[%emt 00:07:48]} 23. Ka2 {[%clk
00:29:01]} {[%emt 00:03:57]} Rhc8 {[%clk 00:47:03]} {[%emt 00:00:31]} 24. Nc4
{[%clk 00:22:14]} {[%emt 00:07:16]} Nd7 {[%clk 00:46:24]} {[%emt 00:01:09]} 25.
Nxd6 {[%clk 00:22:18]} {[%emt 00:00:27]} Kxd6 {[%clk 00:46:51]} {[%emt
00:00:02]} 26. Bd2 {[%clk 00:19:56]} {[%emt 00:02:51]} Rxc2 {[%clk 00:41:52]}
{[%emt 00:05:29]} 27. Bb4+ {[%clk 00:20:23]} {[%emt 00:00:04]} Nc5 {[%clk
00:41:22]} {[%emt 00:01:00]} 28. Rxc2 {[%clk 00:14:11]} {[%emt 00:06:41]} Bxc2
{[%clk 00:41:27]} {[%emt 00:00:25]} 29. Re3 {[%clk 00:14:38]} {[%emt 00:00:03]}
b6 {[%clk 00:40:27]} {[%emt 00:01:30]} 30. g4 {[%clk 00:12:37]} {[%emt
00:02:31]} hxg4 {[%clk 00:40:11]} {[%emt 00:00:46]} 31. Bxg4 {[%clk 00:13:03]}
{[%emt 00:00:04]} f5 {[%clk 00:40:32]} {[%emt 00:00:09]} 32. Be2 {[%clk
00:13:30]} {[%emt 00:00:03]} f4 {[%clk 00:40:04]} {[%emt 00:00:58]} 33. Rc3
{[%clk 00:13:12]} {[%emt 00:00:48]} Be4 {[%clk 00:34:54]} {[%emt 00:05:40]} 34.
Bxa6 {[%clk 00:13:27]} {[%emt 00:00:15]} Bxd5+ {[%clk 00:35:17]} {[%emt
00:00:07]} 35. b3 {[%clk 00:12:36]} {[%emt 00:01:21]} Rh8 {[%clk 00:34:38]}
{[%emt 00:01:09]} 36. a4 {[%clk 00:11:26]} {[%emt 00:01:40]} f3 {[%clk
00:34:33]} {[%emt 00:00:35]} 37. a5 {[%clk 00:11:21]} {[%emt 00:00:34]} Rxh4
{[%clk 00:34:37]} {[%emt 00:00:26]} 38. Ba3 {[%clk 00:09:18]} {[%emt 00:02:33]}
Ra4 {[%clk 00:34:51]} {[%emt 00:00:16]} 39. Bc4 {[%clk 00:03:25]} {[%emt
00:06:23]} Bxc4 {[%clk 00:23:19]} {[%emt 00:12:02]} 40. bxc4 {[%clk 00:03:46]}
{[%emt 00:00:09]} e4 {[%clk 00:23:30]} {[%emt 00:00:20]} 41. axb6 {[%clk
00:03:56]} {[%emt 00:00:20]} f2 {[%clk 00:23:47]} {[%emt 00:00:13]} 42. Rc1
{[%clk 00:04:19]} {[%emt 00:00:06]} e3 {[%clk 00:24:01]} {[%emt 00:00:16]} 43.
Kb2 {[%clk 00:04:39]} {[%emt 00:00:10]} Rxa3 {[%clk 00:24:07]} {[%emt
00:00:25]} 0-1